fUST/lending_fUST_20250408
["ID","MTS","AMOUNT","RATE_DAILY","PERIOD"]
[357427775,1744063891284,-500.0,0.00023013,2]
[357427776,1744063891293,-500.0,0.00023013,2]
[357427777,1744063891306,-500.0,0.00023013,2]
[357427778,1744063891315,-500.0,0.00023013,2]
[357427779,1744063891324,-602.57985915,0.00023013,2]
[357427780,1744063891334,-500.0,0.00023013,2]
[357427781,1744063891344,-6566.66,0.00023013,2]
[357427782,1744063891353,-591.38,0.00023013,2]
[357427783,1744063891362,-500.0,0.00023013,2]
[357427784,1744063891372,-3728.64,0.00023013,2]
[357427785,1744063891381,-4428.79,0.00023013,2]
[357427786,1744063891390,-500.0,0.00023013,2]
[357427787,1744063891399,-500.0,0.00023013,2]
[357427788,1744063891409,-500.0,0.00023013,2]
[357427789,1744063891419,-615.78,0.00023013,2]
[357427790,1744063891428,-1390.87,0.00023013,2]
[357427791,1744063891438,-500.0,0.00023013,2]
[357427792,1744063891447,-500.0,0.00023013,2]
[357427793,1744063891456,-890.23,0.00023013,2]
[357427794,1744063891466,-2219.7,0.00023013,2]
[357427795,1744063891476,-500.0,0.00023013,2]
[357427796,1744063891485,-500.0,0.00023013,2]
[357427797,1744063891495,-2090.85,0.00023013,2]
[357427798,1744063891504,-500.0,0.00023013,2]
[357427799,1744063891513,-711.92,0.00023013,2]
[357427800,1744063891522,-500.0,0.00023013,2]
[357427801,1744063891532,-532.36,0.00023013,2]
[357427802,1744063891542,-1187.74,0.00023013,2]
[357427803,1744063891553,-500.0,0.00023013,2]
[357427804,1744063891563,-500.0,0.00023013,2]
[357427805,1744063891572,-500.0,0.00023013,2]
[357427806,1744063891582,-500.0,0.00023013,2]
[357427807,1744063891591,-1604.89,0.00023013,2]
[357427808,1744063891600,-500.0,0.00023013,2]
[357427809,1744063891610,-531.62,0.00023013,2]
[357427810,1744063891619,-912.89,0.00023013,2]
[357427811,1744063891629,-500.0,0.00023013,2]
[357427812,1744063891638,-645.68,0.00023013,2]
[357427813,1744063891649,-500.0,0.00023013,2]
[357427814,1744063891659,-500.0,0.00023013,2]
[357427815,1744063891668,-500.0,0.00023013,2]
[357427816,1744063891679,-500.0,0.00023013,2]
[357427817,1744063891688,-1967.09,0.00023013,2]
[357427818,1744063891697,-932.59,0.00023013,2]
[357427819,1744063891706,-1296.77,0.00023013,2]
[357427820,1744063891716,-500.0,0.00023013,2]
[357427821,1744063891725,-500.0,0.00023013,2]
[357427822,1744063891734,-500.0,0.00023013,2]
[357427823,1744063891744,-2553.91,0.00023013,2]
[357427824,1744063891753,-883.78,0.00023013,2]
[357427825,1744063891762,-500.0,0.00023013,2]
[357427826,1744063891772,-1780.77,0.00023013,2]
[357427827,1744063891781,-1311.59,0.00023013,2]
[357427828,1744063891791,-601.41,0.00023013,2]
[357427829,1744063891800,-500.0,0.00023013,2]
[357427830,1744063891811,-2372.83,0.00023013,2]
[357427831,1744063891820,-882.05,0.00023013,2]
[357427832,1744063891830,-500.0,0.00023013,2]
[357427833,1744063891839,-2990.05,0.00023013,2]
[357427834,1744063891849,-500.0,0.00023013,2]
[357427835,1744063891858,-804.44,0.00023013,2]
[357427836,1744063891868,-778.69,0.00023013,2]
[357427837,1744063891877,-500.0,0.00023013,2]
[357427838,1744063891887,-500.0,0.00023013,2]
[357427839,1744063891897,-500.0,0.00023013,2]
[357427840,1744063891906,-1614.29,0.00023013,2]
[357427841,1744063891916,-534.61,0.00023013,2]
[357427842,1744063891926,-537.59,0.00023013,2]
[357427843,1744063891935,-1541.32,0.00023013,2]
[357427844,1744063891944,-500.0,0.00023013,2]
[357427845,1744063891954,-375.55186713,0.00023013,2]
[357427846,1744063891964,-500.0,0.00023013,2]
[357427847,1744063891973,-3033.88,0.00023013,2]
[357427848,1744063891982,-500.0,0.00023013,2]
[357427849,1744063891992,-500.0,0.00023013,2]
[357427850,1744063892002,-500.0,0.00023013,2]
[357427851,1744063892011,-500.0,0.00023013,2]
[357427852,1744063892022,-4260.02,0.00023013,2]
[357427853,1744063892031,-549.68,0.00023013,2]
[357427854,1744063892040,-1306.45990508,0.00023019,2]
[357427855,1744063892050,-185.5994547,0.00023151,2]
[357427856,1744063892060,-153.0,0.00023151,2]
[357427857,1744063892069,-153.0,0.00023151,2]
[357427858,1744063892079,-153.0,0.00023151,2]
[357427859,1744063892088,-156.6174458,0.0002326,2]
[357427860,1744063892098,-153.0,0.0002326,2]
[357427861,1744063892108,-156.6174458,0.0002326,2]
[357427862,1744063892117,-156.6174458,0.0002326,2]
[357427863,1744063892127,-151.0,0.00023273,2]
[357427864,1744063892136,-207.4,0.00023273,2]
[357427865,1744063892145,-500.0,0.00023287,2]
[357427866,1744063892155,-500.0,0.00023287,2]
[357427867,1744063892164,-500.0,0.00023287,2]
[357427868,1744063892174,-500.0,0.00023287,2]
[357427869,1744063892183,-534.84934417,0.00023287,2]
[357427870,1744063892192,-369.04988762,0.00023287,2]
[357427871,1744063892201,-500.0,0.00023287,2]
[357427872,1744063892211,-500.0,0.00023287,2]
[357427873,1744063892221,-522.4891948,0.00023287,2]
[357427874,1744063892235,-210.38600346,0.00023287,2]
[357427875,1744063892247,-500.0,0.00023287,2]
[357427876,1744063892258,-500.0,0.00023287,2]
[357427877,1744063892268,-500.0,0.00023287,2]
[357427878,1744063892278,-500.0,0.00023287,2]
[357427879,1744063892288,-500.0,0.00023287,2]
[357427880,1744063892298,-500.0,0.00023287,2]
[357427881,1744063892307,-392.98573405,0.00023287,2]
[357427882,1744063892318,-826.9,0.00023287,2]
[357427883,1744063892328,-500.0,0.00023287,2]
[357427884,1744063892338,-500.0,0.00023287,2]
[357427885,1744063892347,-557.99028269,0.00023287,2]
[357427886,1744063892357,-500.0,0.00023287,2]
[357427887,1744063892367,-500.0,0.00023287,2]
[357427888,1744063892377,-555.17660642,0.00023287,2]
[357427889,1744063892386,-500.0,0.00023287,2]
[357427890,1744063892396,-545.8759229,0.00023287,2]
[357427891,1744063892406,-500.0,0.00023287,2]
[357427892,1744063892415,-500.0,0.00023287,2]
[357427893,1744063892426,-500.0,0.00023287,2]
[357427894,1744063892435,-1072.12,0.00023287,2]
[357427895,1744063892445,-500.0,0.00023287,2]
[357427896,1744063892455,-500.0,0.00023287,2]
[357427897,1744063892464,-500.0,0.00023287,2]
[357427898,1744063892474,-500.0,0.00023287,2]
[357427899,1744063892484,-500.0,0.00023287,2]
[357427900,1744063892494,-500.0,0.00023287,2]
[357427901,1744063892503,-500.0,0.00023287,2]
[357427902,1744063892513,-500.0,0.00023287,2]
[357427903,1744063892522,-500.0,0.00023287,2]
[357427904,1744063892532,-500.0,0.00023287,2]
[357427905,1744063892542,-500.0,0.00023287,2]
[357427906,1744063892552,-500.0,0.00023287,2]
[357427907,1744063892561,-500.0,0.00023287,2]
[357427908,1744063892571,-500.0,0.00023287,2]
[357427909,1744063892580,-500.0,0.00023287,2]
[357427910,1744063892589,-500.0,0.00023287,2]
[357427911,1744063892599,-624.8309818,0.00023287,2]
[357427912,1744063892608,-637.37,0.00023287,2]
[357427913,1744063892617,-500.0,0.00023287,2]
[357427914,1744063892626,-500.0,0.00023287,2]
[357427915,1744063892636,-500.0,0.00023287,2]
[357427916,1744063892645,-795.37,0.00023287,2]
[357427917,1744063892654,-317.7539458,0.00023287,2]
[357427918,1744063892664,-182.25966934,0.00023287,2]
[357427919,1744063892673,-500.0,0.00023287,2]
[357427920,1744063892682,-681.95,0.00023287,2]
[357427921,1744063892691,-500.0,0.00023287,2]
[357427922,1744063892700,-701.4,0.00023287,2]
[357427923,1744063892710,-513.55612192,0.00023287,2]
[357427924,1744063892719,-500.0,0.00023287,2]
[357427925,1744063892729,-500.0,0.00023287,2]
[357427926,1744063892738,-177.98,0.00023287,2]
[357427927,1744063892747,-500.0,0.00023287,2]
[357427928,1744063892757,-500.0,0.00023287,2]
[357427929,1744063892766,-500.0,0.00023287,2]
[357427930,1744063892775,-500.0,0.00023287,2]
[357427931,1744063892784,-500.0,0.00023287,2]
[357427932,1744063892794,-605.63,0.00023287,2]
[357427933,1744063892803,-500.0,0.00023287,2]
[357427934,1744063892813,-500.0,0.00023287,2]
[357427935,1744063892823,-500.0,0.00023287,2]
[357427936,1744063892832,-505.04945649,0.00023287,2]
[357427937,1744063892842,-635.58,0.00023287,2]
[357427938,1744063892851,-504.95139148,0.00023287,2]
[357427939,1744063892861,-195.78130015,0.00023287,2]
[357427940,1744063892871,-500.0,0.00023287,2]
[357427941,1744063892880,-564.95072881,0.00023287,2]
[357427942,1744063892890,-618.83,0.00023287,2]
[357427943,1744063892900,-500.0,0.00023287,2]
[357427944,1744063892909,-1319.58,0.00023287,2]
[357427945,1744063892919,-512.73300551,0.00023287,2]
[357427946,1744063892929,-500.0,0.00023287,2]
[357427947,1744063892939,-583.3481072,0.00023287,2]
[357427948,1744063892949,-586.14,0.00023287,2]
[357427949,1744063892958,-500.0,0.00023287,2]
[357427950,1744063892967,-965.15,0.00023287,2]
[357427951,1744063892977,-500.0,0.00023287,2]
[357427952,1744063892987,-500.0,0.00023287,2]
[357427953,1744063892997,-1172.04,0.00023287,2]
[357427954,1744063893006,-500.0,0.00023287,2]
[357427955,1744063893016,-500.0,0.00023287,2]
[357427956,1744063893025,-500.0,0.00023287,2]
[357427957,1744063893035,-500.0,0.00023287,2]
[357427958,1744063893045,-500.0,0.00023287,2]
[357427959,1744063893055,-500.0,0.00023287,2]
[357427960,1744063893065,-509.93,0.00023287,2]
[357427961,1744063893076,-1010.05,0.00023287,2]
[357427962,1744063893086,-647.31,0.00023287,2]
[357427963,1744063893096,-500.0,0.00023287,2]
[357427964,1744063893106,-500.0,0.00023287,2]
[357427965,1744063893116,-683.72,0.00023287,2]
[357427966,1744063893126,-927.22,0.00023287,2]
[357427967,1744063893137,-500.0,0.00023287,2]
[357427968,1744063893147,-503.20747007,0.00023287,2]
[357427969,1744063893158,-2388.74,0.00023287,2]
[357427970,1744063893169,-500.0,0.00023287,2]
[357427971,1744063893179,-500.0,0.00023287,2]
[357427972,1744063893190,-581.99222784,0.00023287,2]
[357427973,1744063893200,-500.0,0.00023287,2]
[357427974,1744063893210,-500.0,0.00023287,2]
[357427975,1744063893223,-5151.25,0.00023287,2]
[357427976,1744063893236,-500.0,0.00023287,2]
[357427977,1744063893246,-500.0,0.00023287,2]
[357427978,1744063893256,-500.0,0.00023287,2]
[357427979,1744063893267,-500.0,0.00023287,2]
[357427980,1744063893277,-500.0,0.00023287,2]
[357427981,1744063893288,-500.0,0.00023287,2]
[357427982,1744063893299,-641.09,0.00023287,2]
[357427983,1744063893310,-500.0,0.00023287,2]
[357427984,1744063893320,-500.0,0.00023287,2]
[357427985,1744063893330,-500.0,0.00023287,2]
[357427986,1744063893340,-500.0,0.00023287,2]
[357427987,1744063893350,-1515.42,0.00023287,2]
[357427988,1744063893360,-500.0,0.00023287,2]
[357427989,1744063893370,-500.0,0.00023287,2]
[357427990,1744063893380,-1223.9,0.00023287,2]
[357427991,1744063893390,-972.05,0.00023287,2]
[357427992,1744063893400,-500.0,0.00023287,2]
[357427993,1744063893410,-500.0,0.00023287,2]
[357427994,1744063893419,-1029.9,0.00023287,2]
[357427995,1744063893430,-710.69,0.00023287,2]
[357427996,1744063893440,-500.0,0.00023287,2]
[357427997,1744063893449,-514.93,0.00023287,2]
[357427998,1744063893460,-500.0,0.00023287,2]
[357427999,1744063893470,-500.0,0.00023287,2]
[357428000,1744063893481,-471.22299166,0.00023287,2]
[357428001,1744063893491,-500.0,0.00023287,2]
[357428002,1744063893502,-500.0,0.00023287,2]
[357428003,1744063893512,-224.57948009,0.00023287,2]
[357428004,1744063893522,-500.0,0.00023287,2]
[357428005,1744063893532,-500.0,0.00023287,2]
[357428006,1744063893542,-630.65,0.00023287,2]
[357428007,1744063893552,-500.0,0.00023287,2]
[357428008,1744063893563,-200.0,0.00023287,2]
[357428009,1744063893572,-500.0,0.00023287,2]
[357428010,1744063893582,-500.0,0.00023287,2]
[357428011,1744063893591,-500.0,0.00023287,2]
[357428012,1744063893602,-1716.22,0.00023287,2]
[357428013,1744063893611,-601.19,0.00023287,2]
[357428014,1744063893622,-500.0,0.00023287,2]
[357428015,1744063893632,-500.0,0.00023287,2]
[357428016,1744063893642,-1677.61,0.00023287,2]
[357428017,1744063893651,-500.0,0.00023287,2]
[357428018,1744063893875,-526.01,0.00023287,2]
[357428019,1744063893885,-500.0,0.00023287,2]
[357428020,1744063893895,-1206.67,0.00023287,2]
[357428021,1744063893904,-596.27228688,0.00023287,2]
[357428022,1744063893914,-500.0,0.00023287,2]
[357428023,1744063893924,-500.0,0.00023287,2]
[357428024,1744063893934,-500.0,0.00023287,2]
[357428025,1744063893944,-200.0,0.00023287,2]
[357428026,1744063893953,-1866.81,0.00023287,2]
[357428027,1744063893963,-631.76,0.00023287,2]
[357428028,1744063893973,-500.0,0.00023287,2]
[357428029,1744063893982,-500.0,0.00023287,2]
[357428030,1744063893992,-876.5,0.00023287,2]
[357428031,1744063894001,-500.0,0.00023287,2]
[357428032,1744063894011,-711.58,0.00023287,2]
[357428033,1744063894021,-775.52,0.00023287,2]
[357428034,1744063894031,-731.46,0.00023287,2]
[357428035,1744063894040,-492.20219705,0.00023287,2]
[357428036,1744063894050,-506.16650917,0.00023287,2]
[357428037,1744063894060,-500.0,0.00023287,2]
[357428038,1744063894070,-619.94464282,0.00023287,2]
[357428039,1744063894079,-500.0,0.00023287,2]
[357428040,1744063894089,-500.0,0.00023287,2]
[357428041,1744063894099,-578.19,0.00023287,2]
[357428042,1744063894108,-1407.84,0.00023287,2]
[357428043,1744063894119,-500.0,0.00023287,2]
[357428044,1744063894128,-500.0,0.00023287,2]
[357428045,1744063894139,-500.0,0.00023287,2]
[357428046,1744063894149,-500.0,0.00023287,2]
[357428047,1744063894160,-500.0,0.00023287,2]
[357428048,1744063894169,-500.0,0.00023287,2]
[357428049,1744063894179,-500.0,0.00023287,2]
[357428050,1744063894188,-276.49177229,0.00023287,2]
[357428051,1744063894198,-673.31,0.00023287,2]
[357428052,1744063894208,-500.0,0.00023287,2]
[357428053,1744063894218,-519.58169446,0.00023287,2]
[357428054,1744063894231,-860.82,0.00023287,2]
[357428055,1744063894242,-500.0,0.00023287,2]
[357428056,1744063894252,-584.63,0.00023287,2]
[357428057,1744063894262,-500.0,0.00023287,2]
[357428058,1744063894272,-500.0,0.00023287,2]
[357428059,1744063894282,-162.71554809,0.00023287,2]
[357428060,1744063894292,-572.50313645,0.00023287,2]
[357428061,1744063894302,-500.0,0.00023287,2]
[357428062,1744063894312,-875.61,0.00023287,2]
[357428063,1744063894321,-500.0,0.00023287,2]
[357428064,1744063894331,-501.31,0.00023287,2]
[357428065,1744063894340,-500.0,0.00023287,2]
[357428066,1744063894350,-500.0,0.00023287,2]
[357428067,1744063894360,-1137.86,0.00023287,2]
[357428068,1744063894370,-724.96,0.00023287,2]
[357428069,1744063894379,-620.61491599,0.00023287,2]
[357428070,1744063894389,-500.0,0.00023287,2]
[357428071,1744063894399,-500.0,0.00023287,2]
[357428072,1744063894409,-560.96,0.00023287,2]
[357428073,1744063894418,-500.0,0.00023287,2]
[357428074,1744063894428,-1851.71,0.00023287,2]
[357428075,1744063894437,-500.0,0.00023287,2]
[357428076,1744063894448,-500.0,0.00023287,2]
[357428077,1744063894457,-500.0,0.00023287,2]
[357428078,1744063894467,-500.0,0.00023287,2]
[357428079,1744063894476,-500.0,0.00023287,2]
[357428080,1744063894486,-992.11,0.00023287,2]
[357428081,1744063894496,-1076.39,0.00023287,2]
[357428082,1744063894506,-500.0,0.00023287,2]
[357428083,1744063894515,-616.93,0.00023287,2]
[357428084,1744063894526,-500.0,0.00023287,2]
[357428085,1744063894535,-500.0,0.00023287,2]
[357428086,1744063894545,-2026.48,0.00023287,2]
[357428087,1744063894554,-500.0,0.00023287,2]
[357428088,1744063894564,-500.0,0.00023287,2]
[357428089,1744063894574,-953.83,0.00023287,2]
[357428090,1744063894584,-500.0,0.00023287,2]
[357428091,1744063894593,-500.0,0.00023287,2]
[357428092,1744063894603,-500.0,0.00023287,2]
[357428093,1744063894613,-2969.41,0.00023287,2]
[357428094,1744063894623,-500.0,0.00023287,2]
[357428095,1744063894632,-1097.58,0.00023287,2]
[357428096,1744063894642,-519.65,0.00023287,2]
[357428097,1744063894651,-500.0,0.00023287,2]
[357428098,1744063894661,-2444.99,0.00023287,2]
[357428099,1744063894670,-500.0,0.00023287,2]
[357428100,1744063894679,-976.7,0.00023287,2]
[357428101,1744063894689,-500.0,0.00023287,2]
[357428102,1744063894699,-500.0,0.00023287,2]
[357428103,1744063894709,-1051.44,0.00023287,2]
[357428104,1744063894719,-591.81365567,0.00023287,2]
[357428105,1744063894728,-500.0,0.00023287,2]
[357428106,1744063894738,-540.47,0.00023287,2]
[357428107,1744063894747,-543.21,0.00023287,2]
[357428108,1744063894757,-668.11,0.00023287,2]
[357428109,1744063894767,-853.08,0.00023287,2]
[357428110,1744063894776,-1262.71,0.00023287,2]
[357428111,1744063894787,-500.0,0.00023287,2]
[357428112,1744063894796,-500.0,0.00023287,2]
[357428113,1744063894807,-307.56352425,0.00023287,2]
[357428114,1744063894817,-500.0,0.00023287,2]
[357428115,1744063894826,-2569.27,0.00023287,2]
[357428116,1744063894836,-500.0,0.00023287,2]
[357428117,1744063894846,-1733.23,0.00023287,2]
[357428118,1744063894855,-893.36,0.00023287,2]
[357428119,1744063894865,-2016.49,0.00023287,2]
[357428120,1744063894875,-500.0,0.00023287,2]
[357428121,1744063894884,-1152.06,0.00023287,2]
[357428122,1744063894893,-226.59424003,0.00023287,2]
[357428123,1744063894903,-500.0,0.00023287,2]
[357428124,1744063894913,-552.64,0.00023287,2]
[357428125,1744063894922,-18581.5,0.00023287,2]
[357428126,1744063894932,-500.0,0.00023287,2]
[357428127,1744063894942,-500.0,0.00023287,2]
[357428128,1744063894951,-500.0,0.00023287,2]
[357428129,1744063894961,-2267.89,0.00023287,2]
[357428130,1744063894971,-4269.8,0.00023287,2]
[357428131,1744063894981,-500.0,0.00023287,2]
[357428132,1744063894991,-500.0,0.00023287,2]
[357428133,1744063895000,-1821.78,0.00023287,2]
[357428134,1744063895010,-510.13470058,0.00023287,2]
[357428135,1744063895019,-703.14,0.00023287,2]
[357428136,1744063895029,-998.23,0.00023287,2]
[357428137,1744063895039,-2845.59,0.00023287,2]
[357428138,1744063895048,-544.04,0.00023287,2]
[357428139,1744063895058,-500.0,0.00023287,2]
[357428140,1744063895067,-500.0,0.00023287,2]
[357428141,1744063895077,-3675.16,0.00023287,2]
[357428142,1744063895087,-925.05,0.00023287,2]
[357428143,1744063895096,-500.0,0.00023287,2]
[357428144,1744063895106,-500.0,0.00023287,2]
[357428145,1744063895115,-500.0,0.00023287,2]
[357428146,1744063895125,-556.14184732,0.00023287,2]
[357428147,1744063895135,-500.0,0.00023287,2]
[357428148,1744063895144,-500.0,0.00023287,2]
[357428149,1744063895154,-500.0,0.00023287,2]
[357428150,1744063895163,-500.0,0.00023287,2]
[357428151,1744063895173,-500.0,0.00023287,2]
[357428152,1744063895183,-1424.89,0.00023287,2]
[357428153,1744063895193,-500.0,0.00023287,2]
[357428154,1744063895202,-500.0,0.00023287,2]
[357428155,1744063895211,-665.06,0.00023287,2]
[357428156,1744063895222,-500.0,0.00023287,2]
[357428157,1744063895233,-500.0,0.00023287,2]
[357428158,1744063895242,-500.0,0.00023287,2]
[357428159,1744063895252,-545.95,0.00023287,2]
[357428160,1744063895261,-500.0,0.00023287,2]
[357428161,1744063895271,-500.0,0.00023287,2]
[357428162,1744063895280,-538.85960571,0.00023287,2]
[357428163,1744063895290,-500.0,0.00023287,2]
[357428164,1744063895299,-358.61222296,0.00023287,2]
[357428165,1744063895310,-500.0,0.00023287,2]
[357428166,1744063895320,-500.0,0.00023287,2]
[357428167,1744063895330,-2391.05,0.00023287,2]
[357428168,1744063895339,-1497.52,0.00023287,2]
[357428169,1744063895349,-500.0,0.00023287,2]
[357428170,1744063895358,-1082.74,0.00023287,2]
[357428171,1744063895368,-500.0,0.00023287,2]
[357428172,1744063895377,-651.9,0.00023287,2]
[357428173,1744063895387,-2766.76,0.00023287,2]
[357428174,1744063895396,-564.21475722,0.00023287,2]
[357428175,1744063895405,-895.7,0.00023287,2]
[357428176,1744063895415,-572.77,0.00023287,2]
[357428177,1744063895425,-2482.06,0.00023287,2]
[357428178,1744063895435,-967.61,0.00023287,2]
[357428179,1744063895445,-508.41897172,0.00023287,2]
[357428180,1744063895455,-1151.37,0.00023287,2]
[357428181,1744063895464,-2726.63,0.00023287,2]
[357428182,1744063895473,-646.66,0.00023287,2]
[357428183,1744063895483,-500.0,0.00023287,2]
[357428184,1744063895493,-500.0,0.00023287,2]
[357428185,1744063895502,-6139.74,0.00023287,2]
[357428186,1744063895512,-500.0,0.00023287,2]
[357428187,1744063895522,-500.0,0.00023287,2]
[357428188,1744063895531,-4219.24,0.00023287,2]
[357428189,1744063895541,-629.38,0.00023287,2]
[357428190,1744063895550,-4760.8,0.00023287,2]
[357428191,1744063895560,-500.0,0.00023287,2]
[357428192,1744063895570,-500.0,0.00023287,2]
[357428193,1744063895579,-4549.61,0.00023287,2]
[357428194,1744063895588,-500.0,0.00023287,2]
[357428195,1744063895598,-500.0,0.00023287,2]
[357428196,1744063895607,-500.0,0.00023287,2]
[357428197,1744063895617,-500.0,0.00023287,2]
[357428198,1744063895626,-500.0,0.00023287,2]
[357428199,1744063895637,-724.07,0.00023287,2]
[357428200,1744063895647,-291.36844637,0.00023287,2]
[357428201,1744063895657,-500.0,0.00023287,2]
[357428202,1744063895667,-11557.25,0.00023287,2]
[357428203,1744063895676,-500.0,0.00023287,2]
[357428204,1744063895686,-2661.52,0.00023287,2]
[357428205,1744063895695,-500.0,0.00023287,2]
[357428206,1744063895705,-500.0,0.00023287,2]
[357428207,1744063895715,-500.0,0.00023287,2]
[357428208,1744063895725,-3398.84,0.00023287,2]
[357428209,1744063895734,-500.0,0.00023287,2]
[357428210,1744063895743,-500.0,0.00023287,2]
[357428211,1744063895753,-500.0,0.00023287,2]
[357428212,1744063895762,-618.39,0.00023287,2]
[357428213,1744063895772,-500.0,0.00023287,2]
[357428214,1744063895781,-500.0,0.00023287,2]
[357428215,1744063895791,-500.0,0.00023287,2]
[357428216,1744063895800,-569.1,0.00023287,2]
[357428217,1744063895810,-2313.7,0.00023287,2]
[357428218,1744063895820,-745.72,0.00023287,2]
[357428219,1744063895829,-500.0,0.00023287,2]
[357428220,1744063895839,-590.97,0.00023287,2]
[357428221,1744063895849,-3056.09,0.00023287,2]
[357428222,1744063895858,-500.0,0.00023287,2]
[357428223,1744063895868,-500.0,0.00023287,2]
[357428224,1744063895877,-500.0,0.00023287,2]
[357428225,1744063895887,-3478.82,0.00023287,2]
[357428226,1744063895897,-500.0,0.00023287,2]
[357428227,1744063895906,-500.0,0.00023287,2]
[357428228,1744063895915,-507.17438468,0.00023287,2]
[357428229,1744063895925,-819.56,0.00023287,2]
[357428230,1744063895934,-500.0,0.00023287,2]
[357428231,1744063895943,-1068.57,0.00023287,2]
[357428232,1744063895953,-500.0,0.00023287,2]
[357428233,1744063895963,-500.0,0.00023287,2]
[357428234,1744063895973,-621.56,0.00023287,2]
[357428235,1744063895983,-3744.49,0.00023287,2]
[357428236,1744063895992,-500.0,0.00023287,2]
[357428237,1744063896002,-500.0,0.00023287,2]
[357428238,1744063896011,-3303.4,0.00023287,2]
[357428239,1744063896020,-872.78,0.00023287,2]
[357428240,1744063896030,-500.0,0.00023287,2]
[357428241,1744063896039,-500.0,0.00023287,2]
[357428242,1744063896049,-500.0,0.00023287,2]
[357428243,1744063896058,-500.0,0.00023287,2]
[357428244,1744063896068,-500.0,0.00023287,2]
[357428245,1744063896077,-6566.66,0.00023287,2]
[357428246,1744063896087,-591.38,0.00023287,2]
[357428247,1744063896097,-500.0,0.00023287,2]
[357428248,1744063896107,-3728.64,0.00023287,2]
[357428249,1744063896117,-4428.79,0.00023287,2]
[357428250,1744063896127,-500.0,0.00023287,2]
[357428251,1744063896137,-500.0,0.00023287,2]
[357428252,1744063896147,-520.34367094,0.00023287,2]
[357428253,1744063896156,-615.78,0.00023287,2]
[357428254,1744063896167,-1390.87,0.00023287,2]
[357428255,1744063896177,-500.0,0.00023287,2]
[357428256,1744063896186,-500.0,0.00023287,2]
[357428257,1744063896196,-890.23,0.00023287,2]
[357428258,1744063896206,-2219.7,0.00023287,2]
[357428259,1744063896215,-500.0,0.00023287,2]
[357428260,1744063896228,-500.0,0.00023287,2]
[357428261,1744063896238,-2090.85,0.00023287,2]
[357428262,1744063896247,-500.0,0.00023287,2]
[357428263,1744063896257,-711.92,0.00023287,2]
[357428264,1744063896268,-500.0,0.00023287,2]
[357428265,1744063896277,-532.36,0.00023287,2]
[357428266,1744063896288,-1187.74,0.00023287,2]
[357428267,1744063896298,-500.0,0.00023287,2]
[357428268,1744063896308,-500.0,0.00023287,2]
[357428269,1744063896318,-500.0,0.00023287,2]
[357428270,1744063896328,-500.0,0.00023287,2]
[357428271,1744063896338,-1604.89,0.00023287,2]
[357428272,1744063896350,-500.0,0.00023287,2]
[357428273,1744063896360,-531.62,0.00023287,2]
[357428274,1744063896370,-912.89,0.00023287,2]